bitfinex/quotes_SOLUSD_20250728
["timestamp","ask_amount","ask_price","bid_price","bid_amount"]
[1753662056320,2.74043003,190.41,190.36,38.64]
[1753662056515,2.74043003,190.41,190.36,51.2083327]
[1753662056821,2.74043003,190.41,190.39,7.31520809]
[1753662058407,0.66,190.4,190.33,0.72]
[1753662058718,0.66,190.4,190.35,7.31520809]
[1753662058932,0.66,190.39,190.35,7.31520809]
[1753662059303,0.66,190.39,190.36,7.31520809]
[1753662059843,0.66,190.39,190.34,5.25357355]
[1753662060127,7.99240588,190.41,190.37,7.31520809]
[1753662060338,3.40043003,190.41,190.37,7.31520809]
[1753662060504,2.74043003,190.41,190.39,7.31520809]
[1753662060700,2.74043003,190.41,190.4,7.31520809]
[1753662060921,2.74043003,190.41,190.38,0.72]
[1753662061098,2.74043003,190.41,190.4,7.31520809]
[1753662062038,2.74043003,190.41,190.37,5.25289961]
[1753662062234,2.74043003,190.41,190.39,7.31520809]
[1753662062528,2.74043003,190.41,190.4,7.31520809]
[1753662063321,2.74043003,190.41,190.37,5.97289961]
[1753662063641,2.74043003,190.41,190.4,7.31520809]
[1753662064336,0.03,190.42,190.4,13.28730893]
[1753662064511,0.03,190.42,190.41,7.31520809]
[1753662064838,0.03,190.42,190.41,5.68727579]
[1753662066237,0.03,190.42,190.41,4.96727579]
[1753662066446,0.03,190.42,190.41,10.93910079]
[1753662067041,0.03,190.42,190.41,13.78211362]
[1753662067225,0.03,190.42,190.41,21.06721974]
[1753662070154,0.03,190.42,190.41,5.7770075]
[1753662070351,0.03,190.42,190.41,50.89693112]
[1753662070854,0.03,190.42,190.41,43.611825]
[1753662071018,0.03,190.42,190.41,51.61693112]
[1753662072447,0.03,190.42,190.41,38.36]
[1753662072657,0.69,190.42,190.34,13.65938251]
[1753662072951,0.69,190.42,190.37,7.28510612]
[1753662073137,7.97510612,190.42,190.37,38.52]
[1753662073331,0.03,190.42,190.39,7.28510612]
[1753662073735,0.69,190.42,190.39,7.28510612]
[1753662074852,0.66,190.41,190.37,45.80510612]
[1753662075058,0.66,190.4,190.37,45.80510612]
[1753662075233,0.66,190.4,190.32,13.13545688]
[1753662075234,0.66,190.39,190.32,0.72]
[1753662075445,7.28510612,190.38,190.32,7.28510612]
[1753662075649,0.66,190.37,190.33,7.28510612]
[1753662075837,0.66,190.4,190.36,7.28510612]
[1753662076150,0.69,190.42,190.37,7.28510612]
[1753662076350,0.66,190.41,190.37,7.28510612]
[1753662076550,0.66,190.4,190.37,7.28510612]
[1753662077151,0.66,190.4,190.36,7.28510612]
[1753662077384,0.66,190.39,190.36,7.28510612]
[1753662078156,0.66,190.41,190.36,7.28510612]
[1753662078453,0.66,190.4,190.36,7.28510612]
[1753662078959,5.28161029,190.42,190.37,7.28510612]
[1753662079149,0.03,190.42,190.38,7.28510612]
[1753662079351,0.03,190.42,190.41,7.28510612]
[1753662079660,0.03,190.42,190.4,7.28510612]
[1753662080358,0.69,190.42,190.38,45.74510612]
[1753662080545,0.69,190.42,190.38,7.28510612]
[1753662080745,0.69,190.42,190.39,7.28510612]
[1753662080945,0.03,190.42,190.39,7.28510612]
[1753662081432,0.03,190.42,190.37,5.2529285]
[1753662081631,0.69,190.42,190.38,7.28510612]
[1753662082031,0.69,190.42,190.37,5.9729285]
[1753662082032,0.66,190.41,190.37,7.28510612]
[1753662082432,5.28158867,190.42,190.31,8.00510612]
[1753662082433,7.28510612,190.38,190.31,8.00510612]
[1753662082660,7.28510612,190.36,190.3,7.34510612]
[1753662083131,0.66,190.37,190.31,7.28510612]
[1753662083132,7.94510612,190.37,190.31,7.28510612]
[1753662083333,0.66,190.4,190.35,7.28510612]
[1753662083655,7.28510612,190.41,190.34,7.28510612]
[1753662083863,5.91241561,190.39,190.34,7.28510612]
[1753662084033,5.25241561,190.39,190.34,7.28510612]
[1753662084233,0.66,190.38,190.33,12.53908866]
[1753662084456,0.66,190.37,190.33,12.53908866]
[1753662084636,0.56,190.37,190.32,0.72]
[1753662084844,7.28510612,190.4,190.34,7.28510612]
[1753662085062,7.28510612,190.39,190.34,0.72]
[1753662085238,7.28510612,190.38,190.32,7.28510612]
[1753662085438,7.28510612,190.38,190.31,5.25452953]
[1753662085439,7.28510612,190.37,190.31,12.53963565]
[1753662085859,12.5382509,190.37,190.31,12.53963565]
[1753662086063,12.5382509,190.37,190.3,7.34510612]
[1753662086064,7.28510612,190.36,190.3,7.34510612]
[1753662086256,7.28510612,190.34,190.3,0.06]
[1753662086638,7.28510612,190.33,190.3,0.06]
[1753662086946,0.69,190.33,190.3,0.06]
[1753662087154,7.97510612,190.32,190.3,0.06]
[1753662087462,10.71703462,190.32,190.3,0.06]
[1753662088773,2.7419285,190.32,190.3,0.06]
[1753662089561,7.28510612,190.33,190.3,0.06]
[1753662090169,7.97510612,190.33,190.3,0.06]
[1753662091452,5.25351137,190.35,190.3,0.06]
[1753662091652,10.71670397,190.36,190.3,0.78]
[1753662091860,7.28510612,190.35,190.3,0.06]
[1753662092248,7.97510612,190.34,190.3,0.06]
[1753662092453,7.28510612,190.32,190.3,0.06]
[1753662092649,7.28510612,190.31,190.3,0.06]
[1753662093152,7.97510612,190.31,190.3,0.06]
[1753662093347,13.22969074,190.31,190.3,0.06]
[1753662096885,15.89308132,190.31,190.3,0.06]
[1753662097983,13.22969074,190.31,190.3,0.06]
[1753662098982,37.29948083,190.31,190.3,1e-08]
[1753662099150,37.29948083,190.31,190.26,0.06]
[1753662099151,42.78468397,190.27,190.26,0.06]
[1753662099351,88.38979009,190.27,190.26,0.06]
[1753662099547,94.33547937,190.27,190.26,0.06]
[1753662099767,5.25568928,190.27,190.26,0.06]
[1753662099974,50.8607954,190.27,190.26,0.06]
[1753662100279,45.60510612,190.27,190.26,0.06]
[1753662100780,50.8607954,190.27,190.26,0.06]
[1753662101149,45.60510612,190.27,190.26,0.06]
[1753662101351,38.32,190.27,190.26,0.06]
[1753662101696,38.3,190.28,190.26,0.78]
[1753662102190,43.55543279,190.28,190.26,0.06]
[1753662102683,51.53053891,190.28,190.26,0.06]
[1753662102868,7.28510612,190.27,190.26,0.06]
[1753662103054,7.97510612,190.27,190.26,0.06]
[1753662103691,13.2307954,190.27,190.26,0.06]
[1753662104990,15.82120704,190.27,190.26,0.06]
[1753662106081,32.60589101,190.27,190.26,1e-08]
[1753662106264,178.90589101,190.27,190.26,1e-08]
[1753662106489,178.90589101,190.27,190.22,1e-08]
[1753662106490,31.97499009,190.23,190.22,1e-08]
[1753662106675,26.0,190.19,190.09,0.72]
[1753662106883,7.28510612,190.15,190.09,0.72]
[1753662107071,45.54510612,190.15,190.11,0.72]
[1753662107483,45.54510612,190.15,190.06,7.34510612]
[1753662107677,46.23510612,190.15,190.06,0.06]
[1753662107881,7.28510612,190.11,190.06,0.06]
[1753662108091,38.24,190.11,190.1,0.78]
[1753662108517,38.24,190.11,190.1,0.06]
[1753662108727,45.52510612,190.11,190.1,0.06]
[1753662110306,50.78521868,190.11,190.1,0.06]
[1753662110506,51.47521868,190.11,190.1,0.06]
[1753662110881,68.25990265,190.11,190.1,0.06]
[1753662111688,51.47521868,190.11,190.1,0.06]
[1753662111919,50.78521868,190.11,190.1,0.06]
[1753662112079,67.56990265,190.11,190.1,0.06]
[1753662113317,68.25990265,190.11,190.1,0.06]
[1753662114179,68.25990265,190.11,190.1,1e-08]
[1753662114384,16.78468397,190.07,190.06,0.06]
[1753662114620,62.28979009,190.07,190.06,0.06]
[1753662114789,62.93979009,190.07,190.06,0.06]
[1753662116278,68.20100964,190.07,190.06,0.06]
[1753662116480,81.35405851,190.07,189.99,0.71]
[1753662116685,7.28510612,190.0,189.99,0.71]
[1753662116993,45.48510612,190.0,189.99,0.71]
[1753662117378,38.2,190.0,189.99,0.71]
[1753662117583,38.2,190.02,189.99,0.71]
[1753662118108,38.2,190.02,190.0,7.28510612]
[1753662118310,38.2,190.02,190.01,0.71]
[1753662118612,153.58510612,190.06,190.01,0.71]
[1753662118613,38.2,190.04,190.01,7.99510612]
[1753662118786,38.2,190.04,190.01,7.28510612]
[1753662118984,38.2,190.04,190.02,0.71]
[1753662119202,38.2,190.04,190.03,0.71]
[1753662119697,38.2,190.04,190.01,0.71]
[1753662119900,7.28510612,190.07,190.01,7.99510612]
[1753662120084,38.18,190.05,190.02,7.99510612]
[1753662120284,38.16,190.09,190.05,5.26177321]
[1753662120480,38.16,190.09,190.06,0.71]
[1753662121009,45.44510612,190.09,190.06,0.71]
[1753662121217,45.44510612,190.09,190.02,1.6545]
[1753662121218,7.28510612,190.07,190.02,0.71]
[1753662121396,0.65,190.09,190.02,0.71]
[1753662121706,146.3,190.12,190.06,7.28510612]
[1753662121906,7.28510612,190.13,190.07,7.99510612]
[1753662122212,38.2,190.12,190.08,0.71]
[1753662122385,7.28510612,190.1,190.04,12.54715621]
[1753662122589,45.50510612,190.09,190.04,0.71]
[1753662122793,38.22,190.08,190.04,0.71]
[1753662123004,38.22,190.08,190.05,0.71]
[1753662123315,38.22,190.08,190.06,0.71]
[1753662123523,45.50510612,190.08,190.02,7.99510612]
[1753662123711,38.22,190.08,190.03,7.99510612]
[1753662124013,45.50510612,190.08,190.04,0.71]
[1753662124186,45.50510612,190.08,190.05,0.71]
[1753662124620,45.50510612,190.08,190.06,0.71]
[1753662124788,38.22,190.08,190.06,0.71]
[1753662125113,45.50510612,190.08,190.06,0.71]
[1753662125597,7.28510612,190.07,190.03,0.71]
[1753662125798,7.28510612,190.04,189.97,0.06]
[1753662125996,7.28510612,189.98,189.97,0.06]
[1753662126596,12.54881808,189.98,189.97,0.06]
[1753662127001,13.19881808,189.98,189.97,0.06]
[1753662127200,12.54881808,189.98,189.97,0.06]
[1753662127506,26.0,190.02,189.97,0.06]
[1753662127816,38.16,190.01,189.98,0.71]
[1753662128017,7.28510612,190.04,189.99,0.71]
[1753662128199,38.16,190.03,189.99,7.28510612]
[1753662128525,26.0,189.98,189.97,0.06]
[1753662128747,69.42371196,189.98,189.97,0.06]
[1753662128901,94.14350205,189.98,189.97,0.06]
[1753662129099,101.42860817,189.98,189.97,0.06]
[1753662129631,16.78468397,189.97,189.96,0.06]
[1753662129830,32.00489621,189.97,189.96,0.06]
[1753662130192,7.93510612,189.97,189.96,0.06]
[1753662130610,20.48420129,189.97,189.96,0.06]
[1753662130809,37.26888526,189.97,189.96,0.06]
[1753662131015,42.78468397,189.95,189.88,0.06]
[1753662131211,42.78468397,189.95,189.93,1e-08]
[1753662131212,46.50510612,189.94,189.93,1e-08]
[1753662131411,47.15510612,189.94,189.93,1e-08]
[1753662131705,63.93979009,189.94,189.93,1e-08]
[1753662132605,69.20461055,189.94,189.93,1e-08]
[1753662132930,69.20461055,189.94,189.88,0.06]
[1753662132931,42.78468397,189.9,189.88,0.06]
[1753662133130,42.78468397,189.9,189.86,0.06]
[1753662133131,50.06979009,189.87,189.86,0.06]
[1753662133329,96.55489621,189.87,189.86,0.06]
[1753662133632,97.20489621,189.87,189.86,0.06]
[1753662134212,16.78468397,189.86,189.84,0.06]
[1753662134536,71.20489621,189.86,189.84,0.06]
[1753662134711,76.47193508,189.86,189.84,0.06]
[1753662135129,94.53682896,189.86,189.84,0.06]
[1753662135430,76.47193508,189.86,189.84,0.06]
[1753662135616,50.06979009,189.83,189.82,0.06]
[1753662135813,89.26979009,189.83,189.82,0.06]
[1753662136025,33.28510612,189.83,189.82,0.06]
[1753662136225,46.48510612,189.83,189.82,0.06]
[1753662136429,35.52774407,189.86,189.82,0.06]
[1753662136430,31.26703887,189.86,189.82,0.06]
[1753662136616,46.48510612,189.85,189.82,0.77]
[1753662136811,51.75246942,189.85,189.83,0.71]
[1753662137011,7.28510612,189.84,189.82,0.06]
[1753662137232,39.2,189.83,189.82,0.06]
[1753662138032,39.2,189.83,189.82,0.77]
[1753662138235,46.48510612,189.83,189.82,0.06]
[1753662138730,69.18766134,189.83,189.82,0.06]
[1753662139114,68.53766134,189.83,189.82,0.06]
[1753662139726,94.51766134,189.83,189.82,0.06]
[1753662139951,39.18,189.83,189.82,0.77]
[1753662140541,39.18,189.83,189.82,0.06]
[1753662140903,39.18,189.83,189.82,0.77]
[1753662141134,39.18,189.84,189.82,0.77]
[1753662142044,39.18,189.84,189.82,0.06]
[1753662142927,44.44759785,189.84,189.82,0.06]
[1753662143130,39.18,189.84,189.82,0.06]
[1753662143344,39.18,189.84,189.82,0.77]
[1753662144253,51.73273731,189.84,189.82,0.06]
[1753662144553,7.28510612,189.83,189.82,0.06]
[1753662144753,7.93510612,189.83,189.82,0.06]
[1753662145131,29.98766134,189.83,189.82,0.06]
[1753662145342,29.33766134,189.83,189.82,0.06]
[1753662145856,29.99766134,189.83,189.82,0.06]
[1753662146021,55.99766134,189.83,189.82,0.06]
[1753662147234,77.63297737,189.83,189.82,0.06]
[1753662147655,95.07766134,189.83,189.82,0.06]
[1753662148128,94.41766134,189.83,189.82,0.06]
[1753662148749,55.33766134,189.83,189.82,0.06]
[1753662148942,94.39766134,189.83,189.82,0.06]
[1753662149250,95.05766134,189.83,189.82,0.06]
[1753662149836,94.39766134,189.83,189.82,0.06]
[1753662151548,8.01322363,189.85,189.82,0.06]
[1753662151750,39.0,189.84,189.82,0.72]
[1753662151939,39.0,189.84,189.82,0.06]
[1753662152143,39.0,189.84,189.83,0.66]
[1753662153253,5.26743288,189.85,189.83,0.66]
[1753662153561,44.24759376,189.84,189.83,0.66]
[1753662153738,44.22759376,189.84,189.83,0.66]
[1753662153932,38.96,189.84,189.83,0.66]
[1753662154453,38.94,189.84,189.83,0.66]
[1753662154659,5.26621078,189.89,189.83,7.94510612]
[1753662154831,1.5038,189.95,189.83,7.94510612]
[1753662154832,5.26482046,189.94,189.86,7.28510612]
[1753662155032,24.06979009,189.96,189.9,7.28510612]
[1753662155237,74.97155437,189.95,189.9,0.66]
[1753662155642,74.97155437,189.95,189.89,7.28510612]
[1753662155643,12.54992658,189.94,189.91,0.66]
[1753662155956,24.06979009,189.92,189.84,0.66]
[1753662156159,7.28510612,189.9,189.84,7.94510612]
[1753662156364,16.78468397,189.92,189.82,0.06]
[1753662156365,38.92,189.89,189.88,7.28510612]
[1753662156548,38.92,189.9,189.88,7.28510612]
[1753662156749,2.74644825,189.95,189.89,7.94510612]
[1753662156947,38.94,189.95,189.93,7.28510612]
[1753662157251,38.94,189.95,189.94,7.94510612]
[1753662157449,2.74632202,189.99,189.94,7.94510612]
[1753662157653,38.94,189.98,189.95,0.66]
[1753662157844,38.94,189.98,189.96,0.66]
[1753662158052,44.2038349,189.98,189.94,7.28510612]
[1753662158258,44.2038349,189.98,189.94,0.66]
[1753662158944,7.28510612,189.97,189.91,7.94510612]
[1753662159148,38.9,189.96,189.91,7.94510612]
[1753662159341,38.9,189.96,189.92,0.66]
[1753662159767,38.9,189.96,189.93,0.66]
[1753662159768,44.16427305,189.96,189.93,0.66]
[1753662162960,38.8,189.99,189.95,7.28510612]
[1753662163148,38.8,189.99,189.96,7.94510612]
[1753662163467,38.8,189.99,189.98,7.28510612]
[1753662163773,38.8,190.01,189.98,7.94510612]
[1753662163955,38.8,190.01,189.99,7.94510612]
[1753662164268,38.8,190.01,189.99,0.66]
[1753662164678,38.8,190.01,190.0,0.66]
[1753662165656,38.8,190.01,190.0,7.94510612]
[1753662166062,38.76,190.03,190.0,7.94510612]
[1753662166257,38.76,190.03,190.0,7.28510612]
[1753662166465,38.76,190.03,190.01,0.66]
[1753662167876,44.02241335,190.03,190.01,0.66]
[1753662168070,44.02241335,190.03,189.97,0.66]
[1753662168269,44.02241335,190.03,189.98,7.28510612]
[1753662168473,38.76,190.03,189.98,7.28510612]
[1753662168781,38.76,190.03,190.0,7.28510612]
[1753662169162,44.02239646,190.03,190.0,0.66]
[1753662169482,38.72,190.02,190.0,0.66]
[1753662169856,38.72,190.02,189.98,7.94510612]
[1753662170057,38.72,190.02,189.99,0.66]
[1753662171477,43.98265216,190.02,189.96,0.66]
[1753662171675,38.66,190.01,189.97,7.28510612]
[1753662172055,38.66,190.01,189.97,7.94510612]
[1753662172250,38.66,190.01,189.98,0.66]
[1753662172480,38.66,190.01,189.99,0.66]
[1753662172679,38.66,190.01,189.99,7.94510612]
[1753662172978,38.64,190.04,190.0,7.94510612]
[1753662173284,38.64,190.04,190.02,7.28510612]
[1753662173483,0.03,190.07,190.03,7.94510612]
[1753662173670,43.91134368,190.07,190.04,7.94510612]
[1753662173858,43.91134368,190.07,190.04,0.66]
[1753662174182,43.91128854,190.07,190.03,7.28510612]
[1753662174382,43.91128854,190.07,190.03,7.94510612]
[1753662174779,38.65,190.07,190.04,7.99510612]
[1753662174999,38.65,190.07,190.06,7.28510612]
[1753662175375,0.03,190.07,190.06,7.99510612]
[1753662176296,0.03,190.07,190.06,13.25660248]
[1753662178562,0.03,190.09,190.06,28.99255823]
[1753662178888,0.03,190.13,190.08,40.57021224]
[1753662179088,0.03,190.13,190.12,7.28510612]
[1753662179560,0.03,190.13,190.12,13.25494201]
[1753662179965,0.03,190.17,190.12,26.40453174]
[1753662180296,0.03,190.17,190.16,7.28510612]
[1753662180585,0.03,190.17,190.16,15.50420612]
[1753662180784,0.03,190.17,190.16,16.21420612]
[1753662180987,0.03,190.19,190.16,16.74007906]
[1753662181198,0.03,190.19,190.18,7.28510612]
[1753662181570,0.03,190.19,190.18,7.99510612]
[1753662181784,0.03,190.19,190.18,13.25328258]
[1753662183177,0.03,190.19,190.18,7.99510612]
[1753662183471,0.03,190.19,190.18,7.28510612]
[1753662183690,0.03,190.19,190.18,13.25328258]
[1753662184888,0.03,190.19,190.15,0.5259006]
[1753662185089,0.03,190.19,190.18,7.28510612]
[1753662186567,0.03,190.19,190.18,7.99510612]
[1753662187095,0.03,190.19,190.18,13.25328258]
[1753662187277,0.03,190.19,190.18,13.77910022]
[1753662188591,0.03,190.19,190.18,21.06420634]
[1753662188778,0.03,190.19,190.18,76.51321345]
[1753662188968,0.03,190.23,190.19,6.0805]
[1753662189288,0.03,190.23,190.22,7.28510612]
[1753662189695,0.03,190.23,190.22,13.25217688]
[1753662190568,0.03,190.27,190.22,30.32118399]
[1753662190770,0.03,190.27,190.26,7.28510612]
[1753662191200,0.03,190.27,190.26,7.99510612]
[1753662192092,0.03,190.27,190.26,13.25107164]
[1753662192768,0.03,190.27,190.26,30.32007875]
[1753662192971,0.03,190.27,190.26,13.25107164]
[1753662193273,0.03,190.27,190.24,7.28510612]
[1753662193474,0.03,190.27,190.26,7.28510612]
[1753662195696,0.03,190.27,190.25,7.28510612]
[1753662195995,0.03,190.27,190.19,52.51004336]
[1753662195996,0.73,190.27,190.23,7.28510612]
[1753662196297,0.73,190.27,190.24,7.28510612]
[1753662196509,0.03,190.27,190.24,7.28510612]
[1753662196697,0.7,190.26,190.24,7.28510612]
[1753662197379,0.7,190.26,190.23,7.28510612]
[1753662198276,0.03,190.27,190.24,7.28510612]
[1753662198598,0.03,190.27,190.2,5.25762355]
[1753662198599,0.03,190.27,190.26,7.28510612]
[1753662198782,0.03,190.27,190.23,0.71]
[1753662198975,0.03,190.27,190.2,5.96762355]
[1753662199181,0.7,190.26,190.23,7.28510612]
[1753662199399,0.03,190.27,190.19,5.25784144]
[1753662199604,0.7,190.25,190.2,7.28510612]
[1753662199974,0.7,190.24,190.2,7.28510612]
[1753662200381,7.31510612,190.27,190.23,7.28510612]
[1753662200382,0.73,190.27,190.23,7.28510612]
[1753662201288,0.7,190.26,190.21,7.28510612]
[1753662201490,0.7,190.26,190.18,0.71]
[1753662201491,7.98510612,190.25,190.19,7.28510612]
[1753662201803,0.7,190.25,190.18,5.96811636]
[1753662202009,0.7,190.25,190.2,7.28510612]
[1753662202206,7.31510612,190.27,190.2,7.28510612]
[1753662202389,0.7,190.25,190.2,7.28510612]
[1753662202793,7.28510612,190.26,190.18,5.96812885]
[1753662202996,0.7,190.25,190.2,7.28510612]
[1753662203190,5.2567944,190.23,190.17,7.28510612]
[1753662203383,0.7,190.22,190.17,7.28510612]
[1753662203585,0.7,190.22,190.18,7.28510612]
[1753662204006,7.98510612,190.21,190.15,7.99510612]
[1753662204213,7.98510612,190.2,190.13,7.99510612]
[1753662204511,7.98510612,190.19,190.12,7.28510612]
[1753662205035,0.7,190.19,190.14,7.28510612]
[1753662205508,7.28510612,190.21,190.15,7.96510612]
[1753662205685,39.14027276,190.26,190.18,7.28510612]
[1753662205686,38.94,190.24,190.18,7.28510612]
[1753662206105,46.22510612,190.24,190.18,7.28510612]
[1753662206813,51.48167908,190.24,190.17,5.25822302]
[1753662206984,7.28510612,190.21,190.14,7.96510612]
[1753662207190,0.7,190.21,190.14,7.96510612]
[1753662207407,0.7,190.21,190.15,7.28510612]
[1753662207590,44.19657296,190.24,190.19,7.28510612]
[1753662208396,7.6689,190.27,190.2,0.68]
[1753662208603,0.7,190.26,190.21,7.28510612]
[1753662208788,7.28510612,190.23,190.17,7.28510612]
[1753662209111,5.25624178,190.25,190.15,5.93899254]
[1753662209112,7.28510612,190.21,190.15,13.22409866]
[1753662209317,7.98510612,190.2,190.14,7.34510612]
[1753662209495,7.28510612,190.18,190.14,0.06]
[1753662209892,7.98510612,190.17,190.14,0.06]
[1753662210312,7.28510612,190.18,190.14,0.06]
[1753662210516,0.7,190.17,190.14,0.06]
[1753662211414,7.28510612,190.2,190.15,0.68]
[1753662211710,45.52510612,190.2,190.15,0.68]
[1753662211887,7.98510612,190.19,190.14,0.06]
[1753662212091,7.28510612,190.17,190.14,0.06]
[1753662212294,7.28510612,190.15,190.04,7.28510612]
[1753662212508,7.28510612,190.08,190.02,12.54763198]
[1753662213021,7.28510612,190.07,190.01,7.28510612]
[1753662213219,38.24,190.1,190.04,7.28510612]
[1753662213615,50.7856358,190.1,190.03,0.68]
[1753662213911,50.78557775,190.1,190.04,7.28510612]
[1753662214117,7.28510612,190.09,190.03,0.68]
[1753662214305,7.28510612,190.09,190.0,5.26312565]
[1753662214498,7.28510612,190.08,190.02,7.28510612]
[1753662214898,7.28510612,190.08,190.02,12.54757275]
[1753662215921,13.24594413,190.09,190.02,12.54757275]
[1753662216219,12.54614783,190.08,190.02,12.54757275]
[1753662216420,0.7,190.07,189.99,5.26343491]
[1753662216619,0.7,190.07,189.98,0.06]
[1753662216620,7.28510612,190.05,189.98,0.74]
[1753662216820,7.28510612,190.02,189.98,0.06]
[1753662217030,7.28510612,190.0,189.98,0.06]
[1753662217331,7.98510612,190.01,189.98,0.06]
[1753662217499,7.28510612,190.01,189.98,0.06]
[1753662217820,7.28510612,190.02,189.98,0.06]
[1753662218126,0.7,190.01,189.98,0.06]
[1753662218424,0.7,190.0,189.98,0.06]
[1753662219133,5.26310478,190.01,189.98,0.06]
[1753662219312,0.7,190.02,189.98,0.06]
[1753662219313,5.96263126,190.02,189.98,0.06]
[1753662219835,7.28510612,190.03,189.98,0.74]
[1753662220056,38.26,190.04,189.99,0.68]
[1753662220214,44.22214356,190.04,189.98,12.60877622]
[1753662220518,51.50724968,190.04,189.98,0.06]
[1753662220698,1.5369,190.11,189.98,7.34510612]
[1753662220898,38.26,190.06,190.02,7.28510612]
[1753662221101,38.26,190.06,190.02,7.96510612]
[1753662221299,38.26,190.07,190.04,7.28510612]
[1753662221535,38.26,190.07,190.04,7.96510612]
[1753662221695,38.26,190.07,190.03,7.28510612]
[1753662222102,7.98510612,190.06,189.99,7.28510612]
[1753662222398,7.98510612,190.06,189.98,6.00362889]
[1753662222399,13.24665884,190.06,190.0,7.28510612]
[1753662222599,5.96155272,190.06,190.01,7.28510612]
[1753662223023,5.96155272,190.06,189.99,7.28510612]
[1753662223024,0.7,190.05,189.99,7.28510612]
[1753662223222,7.98510612,190.05,189.99,7.28510612]
[1753662224015,7.28510612,190.02,189.98,0.06]
[1753662224315,7.28510612,190.0,189.98,0.06]
[1753662224520,0.7,189.99,189.98,0.06]
[1753662224920,7.28510612,190.0,189.98,0.06]
[1753662225242,0.7,189.99,189.98,0.06]
[1753662225443,7.98510612,189.99,189.98,0.06]
[1753662226320,13.24854103,189.99,189.98,0.06]
[1753662226738,5.26343491,189.99,189.98,0.06]
[1753662226954,7.98510612,190.01,189.98,0.06]
[1753662227117,38.28,189.99,189.98,0.06]
[1753662227737,38.28,189.99,189.98,0.74]
[1753662228216,38.28,189.99,189.98,0.06]
[1753662228420,51.52854103,189.99,189.98,0.06]
[1753662229331,68.313225,189.99,189.98,0.06]
[1753662229640,94.313225,189.99,189.98,1e-08]
[1753662230530,87.02811888,189.99,189.98,1e-08]
[1753662230729,94.313225,189.99,189.98,1e-08]
[1753662231232,87.02811888,189.99,189.98,1e-08]
[1753662231435,7.28510612,189.99,189.98,1e-08]
[1753662231645,5.26314527,190.01,189.98,1e-08]
[1753662231819,38.28,189.99,189.98,1e-08]
[1753662232622,38.28,189.99,189.98,0.68000001]
[1753662232822,38.28,189.99,189.98,7.96510613]
[1753662233646,28.2101,190.06,189.98,7.96510613]
[1753662233647,1.5101,190.06,189.98,7.96510613]
[1753662233940,38.28,190.05,190.01,7.28510612]
[1753662234146,38.28,190.05,189.98,1e-08]
[1753662234147,38.28,190.05,190.03,7.28510612]
[1753662234334,38.28,190.05,190.04,0.68]
[1753662234528,5.26089674,190.09,190.04,7.96510612]
[1753662234731,38.28,190.08,190.04,7.96510612]
[1753662235330,7.95510612,190.07,190.01,7.28510612]
[1753662235718,45.56510612,190.08,190.02,7.28510612]
[1753662236124,45.56510612,190.08,190.01,0.72]
[1753662236349,50.82631955,190.08,190.02,7.28510612]
[1753662237830,158.84567423,190.1,190.04,7.28510612]
[1753662238153,189.84056811,190.1,190.05,7.28510612]
[1753662238334,189.84056811,190.1,190.03,0.72]
[1753662238335,189.84056811,190.1,190.04,7.28510612]
[1753662238534,190.51056811,190.1,190.04,7.28510612]
[1753662238843,184.58,190.1,190.05,8.00510612]
[1753662239048,38.28,190.1,190.06,8.00510612]
[1753662239346,26.03,190.14,190.09,7.28510612]
[1753662239347,0.03,190.14,190.09,7.28510612]
[1753662239658,0.03,190.14,190.1,0.72]